[Event "Late-Titled-Tuesday-Blitz-April-16-2024"]
[Site "Chess.com"]
[Date "2024.04.16"]
[Round "1"]
[White "ChessBrainiacOnTwitch"]
[Black "szachmistrz2500"]
[Result "1-0"]
[WhiteElo "2840"]
[BlackElo "2465"]
[TimeControl "180+1"]
[EndTime "14:07:27 PDT"]
[Termination "ChessBrainiacOnTwitch won on time"]

1. Nf3 {[%clk 0:03:00.9]} 1... c5 {[%clk 0:02:57.8]} 2. b3 {[%clk 0:03:00]} 2...
Nf6 {[%clk 0:02:55.7]} 3. Bb2 {[%clk 0:03:00.9]} 3... e6 {[%clk 0:02:54.9]} 4.
e3 {[%clk 0:02:58.8]} 4... b6 {[%clk 0:02:53.7]} 5. c4 {[%clk 0:02:57]} 5... Bb7
{[%clk 0:02:49.5]} 6. Nc3 {[%clk 0:02:56]} 6... Be7 {[%clk 0:02:47]} 7. Be2
{[%clk 0:02:53.2]} 7... O-O {[%clk 0:02:46.5]} 8. O-O {[%clk 0:02:53.1]} 8... d5
{[%clk 0:02:41]} 9. cxd5 {[%clk 0:02:51.8]} 9... Nxd5 {[%clk 0:02:41]} 10. a3
{[%clk 0:02:44.8]} 10... Nc6 {[%clk 0:02:30.6]} 11. Qc2 {[%clk 0:02:44]} 11...
Rc8 {[%clk 0:02:29.6]} 12. Rac1 {[%clk 0:02:43.8]} 12... Nd4 {[%clk 0:02:25.2]}
13. exd4 {[%clk 0:02:38.5]} 13... Nf4 {[%clk 0:02:20.7]} 14. dxc5 {[%clk
0:02:28.2]} 14... Rxc5 {[%clk 0:02:16.6]} 15. d4 {[%clk 0:02:25.5]} 15... Rh5
{[%clk 0:02:12.2]} 16. Qd2 {[%clk 0:02:15.4]} 16... Bd6 {[%clk 0:02:10.3]} 17.
Qe3 {[%clk 0:01:29.4]} 17... Nxe2+ {[%clk 0:01:11.7]} 18. Nxe2 {[%clk
0:00:39.1]} 18... Bxf3 {[%clk 0:01:05.7]} 19. gxf3 {[%clk 0:00:19.8]} 19...
Bxh2+ {[%clk 0:00:56.9]} 20. Kg2 {[%clk 0:00:18.1]} 20... f5 {[%clk 0:00:24.5]}
21. f4 {[%clk 0:00:16.1]} 21... Rf6 {[%clk 0:00:20.7]} 22. Rh1 {[%clk
0:00:15.4]} 22... Rg6+ {[%clk 0:00:19.5]} 23. Ng3 {[%clk 0:00:16]} 23... Bxg3
{[%clk 0:00:18.2]} 24. fxg3 {[%clk 0:00:15.6]} 24... Rxh1 {[%clk 0:00:12.4]} 25.
Rxh1 {[%clk 0:00:16.5]} 25... Qd5+ {[%clk 0:00:12.7]} 26. Qf3 {[%clk 0:00:15.7]}
26... Qb5 {[%clk 0:00:13]} 27. Rc1 {[%clk 0:00:13.6]} 27... h6 {[%clk
0:00:12.6]} 28. Re1 {[%clk 0:00:12.5]} 28... a5 {[%clk 0:00:11.5]} 29. a4 {[%clk
0:00:13.1]} 29... Qb4 {[%clk 0:00:11.3]} 30. Re2 {[%clk 0:00:11]} 30... Kh7
{[%clk 0:00:10.1]} 31. Bc1 {[%clk 0:00:10.1]} 31... Qd6 {[%clk 0:00:07.8]} 32.
Be3 {[%clk 0:00:10.3]} 32... Qa3 {[%clk 0:00:07.6]} 33. Bf2 {[%clk 0:00:09.4]}
33... Qa1 {[%clk 0:00:07]} 34. d5 {[%clk 0:00:09.4]} 34... exd5 {[%clk
0:00:06.5]} 35. Qxd5 {[%clk 0:00:10.3]} 35... Qb1 {[%clk 0:00:04.4]} 36. Re5
{[%clk 0:00:09.4]} 36... Rf6 {[%clk 0:00:03.7]} 37. Re6 {[%clk 0:00:08.4]} 37...
Rf7 {[%clk 0:00:01.5]} 38. Rxb6 {[%clk 0:00:08.5]} 38... Rf8 {[%clk 0:00:01.3]}
39. Rb7 {[%clk 0:00:07.5]} 39... Rc8 {[%clk 0:00:01.2]} 40. Qe5 {[%clk
0:00:06.9]} 1-0

[Event "Late-Titled-Tuesday-Blitz-April-16-2024"]
[Site "Chess.com"]
[Date "2024.04.16"]
[Round "1"]
[White "Hirna2005"]
[Black "reevecanada"]
[Result "1-0"]
[WhiteElo "2340"]
[BlackElo "2611"]
[TimeControl "180+1"]
[EndTime "14:07:30 PDT"]
[Termination "Hirna2005 won by checkmate"]

1. e4 {[%clk 0:03:00.9]} 1... c5 {[%clk 0:02:56.8]} 2. c3 {[%clk 0:03:00.8]}
2... d6 {[%clk 0:02:54.7]} 3. d4 {[%clk 0:03:00.4]} 3... Nd7 {[%clk 0:02:54]} 4.
Nf3 {[%clk 0:02:59.7]} 4... Ngf6 {[%clk 0:02:52.8]} 5. Bd3 {[%clk 0:02:58.3]}
5... c4 {[%clk 0:02:51.3]} 6. Bc2 {[%clk 0:02:50.7]} 6... b5 {[%clk 0:02:46.8]}
7. O-O {[%clk 0:02:50]} 7... Bb7 {[%clk 0:02:45.5]} 8. e5 {[%clk 0:02:47.7]}
8... Nd5 {[%clk 0:02:42.6]} 9. e6 {[%clk 0:02:45.4]} 9... fxe6 {[%clk
0:02:40.5]} 10. Ng5 {[%clk 0:02:45.6]} 10... N7f6 {[%clk 0:02:39.1]} 11. Nxe6
{[%clk 0:02:45]} 11... Qd7 {[%clk 0:02:38.5]} 12. Qe2 {[%clk 0:02:39.5]} 12...
Bc8 {[%clk 0:02:29.3]} 13. Nxf8 {[%clk 0:02:33.6]} 13... Rxf8 {[%clk 0:02:26.5]}
14. a4 {[%clk 0:02:33.3]} 14... Nb6 {[%clk 0:02:20.1]} 15. axb5 {[%clk
0:02:25.7]} 15... Qxb5 {[%clk 0:02:16.2]} 16. Na3 {[%clk 0:02:24.5]} 16... Qc6
{[%clk 0:02:15.4]} 17. Bf4 {[%clk 0:02:11.2]} 17... Bb7 {[%clk 0:02:08.4]} 18.
f3 {[%clk 0:02:11.3]} 18... Rf7 {[%clk 0:02:06.9]} 19. Qe6 {[%clk 0:01:54.5]}
19... Nfd5 {[%clk 0:01:59.7]} 20. Bd2 {[%clk 0:01:45.7]} 20... g6 {[%clk
0:01:56.4]} 21. Be4 {[%clk 0:01:41.3]} 21... Bc8 {[%clk 0:01:49]} 22. Bxd5
{[%clk 0:01:34.7]} 22... Nxd5 {[%clk 0:01:49.9]} 23. Qe2 {[%clk 0:01:33.8]}
23... Nb6 {[%clk 0:01:47.1]} 24. Rfe1 {[%clk 0:01:29.1]} 24... Bf5 {[%clk
0:01:45]} 25. Bg5 {[%clk 0:01:20.4]} 25... Kd7 {[%clk 0:01:35]} 26. Qe3 {[%clk
0:01:10.9]} 26... Nd5 {[%clk 0:01:32.2]} 27. Qe2 {[%clk 0:01:07.2]} 27... Rc8
{[%clk 0:01:27]} 28. Nxc4 {[%clk 0:00:56.8]} 28... Qxc4 {[%clk 0:01:23.8]} 29.
Rxa7+ {[%clk 0:00:56.6]} 29... Kd8 {[%clk 0:01:12.9]} 30. Qd1 {[%clk 0:00:48.9]}
30... Rc7 {[%clk 0:01:07.2]} 31. Ra8+ {[%clk 0:00:45.9]} 31... Kd7 {[%clk
0:01:05.8]} 32. Qa1 {[%clk 0:00:45.3]} 32... h6 {[%clk 0:01:03.6]} 33. Bd2
{[%clk 0:00:42.3]} 33... g5 {[%clk 0:01:02.5]} 34. Rh8 {[%clk 0:00:31.4]} 34...
Nb6 {[%clk 0:01:00.3]} 35. Rxh6 {[%clk 0:00:27.6]} 35... Qd3 {[%clk 0:00:57.4]}
36. Bxg5 {[%clk 0:00:24.5]} 36... Rg7 {[%clk 0:00:55.5]} 37. Bh4 {[%clk
0:00:19.4]} 37... Qxf3 {[%clk 0:00:50]} 38. Bg3 {[%clk 0:00:19.6]} 38... Kc6
{[%clk 0:00:50.2]} 39. gxf3 {[%clk 0:00:17.5]} 39... Ra7 {[%clk 0:00:50]} 40.
Qc1 {[%clk 0:00:16.7]} 40... Nd5 {[%clk 0:00:49.5]} 41. c4 {[%clk 0:00:16.3]}
41... Nb4 {[%clk 0:00:48.7]} 42. d5+ {[%clk 0:00:16.6]} 42... Kd7 {[%clk
0:00:48.3]} 43. Qe3 {[%clk 0:00:15.1]} 43... Ra2 {[%clk 0:00:47.4]} 44. Qb6
{[%clk 0:00:12.7]} 44... Rxb2 {[%clk 0:00:46.4]} 45. Qb7+ {[%clk 0:00:12.5]}
45... Ke8 {[%clk 0:00:41.1]} 46. Rh8+ {[%clk 0:00:12.8]} 46... Kf7 {[%clk
0:00:41.6]} 47. Qxe7+ {[%clk 0:00:12.9]} 47... Kg6 {[%clk 0:00:41.3]} 48. Qh4
{[%clk 0:00:11]} 48... Nd3 {[%clk 0:00:21.2]} 49. Rh6+ {[%clk 0:00:10.9]} 49...
Kf7 {[%clk 0:00:20.8]} 50. Re7+ {[%clk 0:00:10.9]} 50... Kg8 {[%clk 0:00:18]}
51. Rh8# {[%clk 0:00:10.7]} 1-0

[Event "Late-Titled-Tuesday-Blitz-April-16-2024"]
[Site "Chess.com"]
[Date "2024.04.16"]
[Round "1"]
[White "manitodeplomo"]
[Black "jinxy2009"]
[Result "1-0"]
[WhiteElo "2639"]
[BlackElo "2342"]
[TimeControl "180+1"]
[EndTime "14:07:31 PDT"]
[Termination "manitodeplomo won on time"]

1. d4 {[%clk 0:02:58.3]} 1... Nf6 {[%clk 0:02:58]} 2. c4 {[%clk 0:02:57.5]} 2...
g6 {[%clk 0:02:57.4]} 3. Nc3 {[%clk 0:02:54.3]} 3... d5 {[%clk 0:02:57.6]} 4.
Bf4 {[%clk 0:02:48.3]} 4... Bg7 {[%clk 0:02:39.5]} 5. e3 {[%clk 0:02:47.5]} 5...
O-O {[%clk 0:02:39.7]} 6. Rc1 {[%clk 0:02:47.5]} 6... c5 {[%clk 0:02:40]} 7.
dxc5 {[%clk 0:02:48.4]} 7... Qa5 {[%clk 0:02:38.1]} 8. cxd5 {[%clk 0:02:47.5]}
8... Qxc5 {[%clk 0:02:31.8]} 9. Nf3 {[%clk 0:02:33.4]} 9... Bg4 {[%clk
0:02:30.4]} 10. Be2 {[%clk 0:02:33.1]} 10... Nbd7 {[%clk 0:02:15.8]} 11. O-O
{[%clk 0:02:30.1]} 11... Nb6 {[%clk 0:02:16.2]} 12. e4 {[%clk 0:02:26.9]} 12...
Nh5 {[%clk 0:02:01.7]} 13. Be3 {[%clk 0:02:22.1]} 13... Qb4 {[%clk 0:01:53]} 14.
Qc2 {[%clk 0:01:57.2]} 14... Rac8 {[%clk 0:01:17.4]} 15. a3 {[%clk 0:01:55.1]}
15... Qd6 {[%clk 0:01:12.5]} 16. Qb3 {[%clk 0:01:42.1]} 16... f5 {[%clk
0:01:02.9]} 17. e5 {[%clk 0:01:34.8]} 17... Bxe5 {[%clk 0:00:55]} 18. Nb5 {[%clk
0:01:32.5]} 18... Qf6 {[%clk 0:00:41.8]} 19. Nxa7 {[%clk 0:01:25.6]} 19... Rxc1
{[%clk 0:00:27.6]} 20. Rxc1 {[%clk 0:01:26.5]} 20... Nd7 {[%clk 0:00:25.1]} 21.
Qxb7 {[%clk 0:01:19.4]} 21... f4 {[%clk 0:00:20.2]} 22. Bd2 {[%clk 0:00:56.5]}
22... Bxb2 {[%clk 0:00:20]} 23. Rc6 {[%clk 0:00:52.2]} 23... e6 {[%clk
0:00:11.1]} 24. Qxd7 {[%clk 0:00:45.7]} 24... Bxa3 {[%clk 0:00:08.5]} 25. h3
{[%clk 0:00:37.9]} 25... Bf5 {[%clk 0:00:06]} 26. Bc3 {[%clk 0:00:34.5]} 26...
Qe7 {[%clk 0:00:03.4]} 27. Qxe7 {[%clk 0:00:32.4]} 27... Bxe7 {[%clk 0:00:04.3]}
28. dxe6 {[%clk 0:00:32.3]} 28... Ra8 {[%clk 0:00:04.6]} 29. Rc7 {[%clk
0:00:31.9]} 29... Bd8 {[%clk 0:00:03.6]} 30. Rb7 {[%clk 0:00:28.3]} 30... Bxe6
{[%clk 0:00:03.6]} 31. Nd4 {[%clk 0:00:23.7]} 31... Bf7 {[%clk 0:00:03.3]} 32.
Nac6 {[%clk 0:00:18.2]} 32... Bf6 {[%clk 0:00:04]} 33. Ne7+ {[%clk 0:00:16.5]}
33... Bxe7 {[%clk 0:00:03.7]} 34. Rxe7 {[%clk 0:00:16]} 34... Ra3 {[%clk
0:00:04.6]} 35. Rc7 {[%clk 0:00:14]} 35... f3 {[%clk 0:00:03.5]} 36. Bxf3 {[%clk
0:00:14.1]} 36... Nf4 {[%clk 0:00:04.4]} 37. g3 {[%clk 0:00:13.7]} 37... Nd5
{[%clk 0:00:03.8]} 38. Bxd5 {[%clk 0:00:12.3]} 38... Bxd5 {[%clk 0:00:04.7]} 39.
Kf1 {[%clk 0:00:10.4]} 39... Rb3 {[%clk 0:00:04.6]} 40. Nxb3 {[%clk 0:00:09.6]}
40... Bxb3 {[%clk 0:00:04.2]} 41. Ke1 {[%clk 0:00:10]} 1-0

[Event "Late-Titled-Tuesday-Blitz-April-16-2024"]
[Site "Chess.com"]
[Date "2024.04.16"]
[Round "1"]
[White "ChEsper99"]
[Black "OriTaichman"]
[Result "0-1"]
[WhiteElo "2202"]
[BlackElo "2563"]
[TimeControl "180+1"]
[EndTime "14:07:31 PDT"]
[Termination "OriTaichman won by resignation"]

1. e4 {[%clk 0:02:58.3]} 1... c5 {[%clk 0:02:58.9]} 2. Nf3 {[%clk 0:02:58.3]}
2... Nc6 {[%clk 0:02:59]} 3. c3 {[%clk 0:02:55.9]} 3... d6 {[%clk 0:02:56.1]} 4.
d4 {[%clk 0:02:55.5]} 4... Nf6 {[%clk 0:02:56.6]} 5. Bd3 {[%clk 0:02:54.4]} 5...
e5 {[%clk 0:02:56.8]} 6. dxc5 {[%clk 0:02:48.4]} 6... dxc5 {[%clk 0:02:57]} 7.
O-O {[%clk 0:02:48.7]} 7... Be7 {[%clk 0:02:56.6]} 8. Bg5 {[%clk 0:02:44.8]}
8... O-O {[%clk 0:02:54.6]} 9. Na3 {[%clk 0:02:42.9]} 9... a6 {[%clk 0:02:51.8]}
10. Nc4 {[%clk 0:02:38.6]} 10... Nh5 {[%clk 0:02:32.9]} 11. Bxe7 {[%clk
0:02:34.7]} 11... Qxe7 {[%clk 0:02:33.8]} 12. a4 {[%clk 0:02:10.9]} 12... Nf4
{[%clk 0:02:23.4]} 13. Nb6 {[%clk 0:01:50.4]} 13... Rb8 {[%clk 0:02:11.6]} 14.
Nxc8 {[%clk 0:01:50.3]} 14... Rfxc8 {[%clk 0:02:00]} 15. Bc4 {[%clk 0:01:49.9]}
15... b5 {[%clk 0:01:57.2]} 16. axb5 {[%clk 0:01:49.8]} 16... axb5 {[%clk
0:01:58.1]} 17. Bd5 {[%clk 0:01:45.7]} 17... Rd8 {[%clk 0:01:55.6]} 18. Ra6
{[%clk 0:01:30.2]} 18... Rbc8 {[%clk 0:01:40.8]} 19. Qb3 {[%clk 0:01:16.5]}
19... Nb8 {[%clk 0:01:25.8]} 20. Ra8 {[%clk 0:01:16.1]} 20... Nxd5 {[%clk
0:01:20.6]} 21. exd5 {[%clk 0:01:15.3]} 21... Qb7 {[%clk 0:01:21.3]} 22. Rfa1
{[%clk 0:00:51.5]} 22... c4 {[%clk 0:01:06.4]} 23. Qa3 {[%clk 0:00:17.2]} 23...
Qxd5 {[%clk 0:01:01.7]} 24. h3 {[%clk 0:00:17.5]} 24... Nc6 {[%clk 0:00:59.9]}
25. Rxc8 {[%clk 0:00:14.9]} 25... Rxc8 {[%clk 0:01:00.8]} 26. Qa6 {[%clk
0:00:14.4]} 26... Rd8 {[%clk 0:01:00.2]} 27. Qb7 {[%clk 0:00:12.7]} 27... h6
{[%clk 0:00:59.3]} 28. Ra6 {[%clk 0:00:11.7]} 28... e4 {[%clk 0:00:46.7]} 29.
Qxc6 {[%clk 0:00:03.6]} 29... Qd1+ {[%clk 0:00:40]} 30. Kh2 {[%clk 0:00:03]}
30... exf3 {[%clk 0:00:40.3]} 31. gxf3 {[%clk 0:00:01.2]} 31... Qe2 {[%clk
0:00:33.8]} 32. Ra8 {[%clk 0:00:02.1]} 32... Qxf2+ {[%clk 0:00:33.5]} 33. Kh1
{[%clk 0:00:02.6]} 33... Qf1+ {[%clk 0:00:31.4]} 34. Kh2 {[%clk 0:00:02.6]}
34... Qe2+ {[%clk 0:00:31.8]} 35. Kg3 {[%clk 0:00:02.5]} 35... Qe1+ {[%clk
0:00:27.2]} 36. Kg2 {[%clk 0:00:02.6]} 36... Qd2+ {[%clk 0:00:27.2]} 37. Kg3
{[%clk 0:00:02.8]} 37... Rxa8 {[%clk 0:00:26.2]} 38. Qxa8+ {[%clk 0:00:02.8]}
38... Kh7 {[%clk 0:00:27.1]} 39. Qe4+ {[%clk 0:00:03.3]} 39... g6 {[%clk
0:00:27.2]} 40. Qe7 {[%clk 0:00:03]} 40... Qg5+ {[%clk 0:00:26]} 41. Qxg5 {[%clk
0:00:03.3]} 41... hxg5 {[%clk 0:00:26.9]} 42. Kg4 {[%clk 0:00:02.2]} 42... f6
{[%clk 0:00:27.3]} 43. Kg3 {[%clk 0:00:02.3]} 43... Kh6 {[%clk 0:00:27.2]} 44.
Kg2 {[%clk 0:00:02.5]} 44... Kh5 {[%clk 0:00:27.2]} 45. Kh2 {[%clk 0:00:02.6]}
45... Kh4 {[%clk 0:00:27.3]} 46. Kg2 {[%clk 0:00:02.8]} 46... f5 {[%clk
0:00:28]} 47. Kh2 {[%clk 0:00:03.2]} 47... g4 {[%clk 0:00:28.1]} 0-1

[Event "Late-Titled-Tuesday-Blitz-April-16-2024"]
[Site "Chess.com"]
[Date "2024.04.16"]
[Round "1"]
[White "dretch"]
[Black "Slovineanu"]
[Result "1-0"]
[WhiteElo "2910"]
[BlackElo "2491"]
[TimeControl "180+1"]
[EndTime "14:07:36 PDT"]
[Termination "dretch won by resignation"]

1. d4 {[%clk 0:03:00.9]} 1... Nf6 {[%clk 0:02:58.7]} 2. c4 {[%clk 0:03:01.1]}
2... e6 {[%clk 0:02:58.8]} 3. Nc3 {[%clk 0:03:01]} 3... d5 {[%clk 0:02:59.3]} 4.
cxd5 {[%clk 0:03:00.9]} 4... Nxd5 {[%clk 0:02:59.3]} 5. e4 {[%clk 0:03:00.2]}
5... Nxc3 {[%clk 0:02:59.4]} 6. bxc3 {[%clk 0:02:59.9]} 6... c5 {[%clk
0:03:00.1]} 7. a3 {[%clk 0:02:57.9]} 7... cxd4 {[%clk 0:02:59.3]} 8. cxd4 {[%clk
0:02:58.1]} 8... e5 {[%clk 0:02:59.8]} 9. Be3 {[%clk 0:02:11.3]} 9... exd4
{[%clk 0:02:52.2]} 10. Qxd4 {[%clk 0:02:08.6]} 10... Qxd4 {[%clk 0:02:50.6]} 11.
Bxd4 {[%clk 0:02:08.9]} 11... Nc6 {[%clk 0:02:50.9]} 12. Bc3 {[%clk 0:01:59.2]}
12... f6 {[%clk 0:02:51.1]} 13. Bc4 {[%clk 0:01:57.1]} 13... Bd6 {[%clk
0:02:48.9]} 14. Nf3 {[%clk 0:01:51.6]} 14... Ke7 {[%clk 0:02:48.4]} 15. O-O
{[%clk 0:01:50.3]} 15... Be6 {[%clk 0:02:47.2]} 16. Bb5 {[%clk 0:01:45.1]} 16...
Rac8 {[%clk 0:02:44.5]} 17. Rfc1 {[%clk 0:01:42.8]} 17... a6 {[%clk 0:02:37.2]}
18. Bxc6 {[%clk 0:01:34]} 18... Rxc6 {[%clk 0:02:31.2]} 19. Bb4 {[%clk
0:01:34.1]} 19... Rhc8 {[%clk 0:02:23]} 20. Bxd6+ {[%clk 0:01:32.4]} 20... Kxd6
{[%clk 0:02:17.7]} 21. Rd1+ {[%clk 0:01:32.5]} 21... Ke7 {[%clk 0:02:17.5]} 22.
Nd4 {[%clk 0:01:31.8]} 22... Rd6 {[%clk 0:02:10.9]} 23. Rd2 {[%clk 0:01:14.5]}
23... Rcd8 {[%clk 0:01:35.3]} 24. Rad1 {[%clk 0:01:10.8]} 24... Kf7 {[%clk
0:01:28.1]} 25. Kf1 {[%clk 0:01:00.7]} 25... b5 {[%clk 0:01:26.6]} 26. Ke2
{[%clk 0:00:58.9]} 26... Bc4+ {[%clk 0:01:23.7]} 27. Ke3 {[%clk 0:00:59]} 27...
a5 {[%clk 0:01:21.6]} 28. Nc6 {[%clk 0:00:47.4]} 28... Rxc6 {[%clk 0:00:58.6]}
29. Rxd8 {[%clk 0:00:46.2]} 29... b4 {[%clk 0:00:58.2]} 30. R1d7+ {[%clk
0:00:38.1]} 30... Ke6 {[%clk 0:00:55.5]} 31. f4 {[%clk 0:00:35.3]} 31... g6
{[%clk 0:00:45.6]} 32. g4 {[%clk 0:00:31.2]} 32... f5 {[%clk 0:00:45.4]} 33.
axb4 {[%clk 0:00:28.9]} 33... axb4 {[%clk 0:00:44.4]} 34. gxf5+ {[%clk
0:00:28.6]} 34... gxf5 {[%clk 0:00:44.3]} 35. Rxh7 {[%clk 0:00:24.4]} 35... Bb5
{[%clk 0:00:11.6]} 36. e5 {[%clk 0:00:18.6]} 36... b3 {[%clk 0:00:09.4]} 37.
Rh6+ {[%clk 0:00:13.1]} 37... Ke7 {[%clk 0:00:09.4]} 38. Rxc6 {[%clk 0:00:11.6]}
38... Bxc6 {[%clk 0:00:07.9]} 39. Rb8 {[%clk 0:00:10.6]} 39... Bd5 {[%clk
0:00:07.9]} 40. Kd4 {[%clk 0:00:10.8]} 40... Be6 {[%clk 0:00:07.6]} 41. Rb7+
{[%clk 0:00:11]} 41... Kf8 {[%clk 0:00:07.7]} 42. Kc5 {[%clk 0:00:11]} 42... Kg8
{[%clk 0:00:05.7]} 43. Kd6 {[%clk 0:00:11.1]} 43... Bc4 {[%clk 0:00:06.3]} 44.
e6 {[%clk 0:00:10.7]} 44... Kf8 {[%clk 0:00:04.7]} 45. Rb8+ {[%clk 0:00:10.5]}
45... Kg7 {[%clk 0:00:05]} 46. e7 {[%clk 0:00:10.9]} 1-0

[Event "Late-Titled-Tuesday-Blitz-April-16-2024"]
[Site "Chess.com"]
[Date "2024.04.16"]
[Round "1"]
[White "PhileKhoob"]
[Black "ansko1999"]
[Result "1-0"]
[WhiteElo "2307"]
[BlackElo "2592"]
[TimeControl "180+1"]
[EndTime "14:07:47 PDT"]
[Termination "PhileKhoob won by checkmate"]

1. Nf3 {[%clk 0:02:59.9]} 1... b6 {[%clk 0:02:56.5]} 2. g3 {[%clk 0:03:00.2]}
2... Bb7 {[%clk 0:02:57]} 3. Bg2 {[%clk 0:03:00.8]} 3... Nf6 {[%clk 0:02:57.4]}
4. O-O {[%clk 0:03:01.4]} 4... g6 {[%clk 0:02:57.9]} 5. d4 {[%clk 0:03:02]} 5...
Bg7 {[%clk 0:02:58.4]} 6. c4 {[%clk 0:03:01.8]} 6... O-O {[%clk 0:02:59.1]} 7.
Nc3 {[%clk 0:03:02.4]} 7... Ne4 {[%clk 0:02:59.9]} 8. Qc2 {[%clk 0:03:01.6]}
8... Nxc3 {[%clk 0:02:59.9]} 9. bxc3 {[%clk 0:03:02.5]} 9... d6 {[%clk 0:02:57]}
10. e4 {[%clk 0:03:01.4]} 10... Nc6 {[%clk 0:02:55]} 11. a4 {[%clk 0:02:56.9]}
11... Na5 {[%clk 0:02:54.6]} 12. Nd2 {[%clk 0:02:57.4]} 12... c5 {[%clk
0:02:53.5]} 13. d5 {[%clk 0:02:55.8]} 13... Ba6 {[%clk 0:02:52]} 14. Qd3 {[%clk
0:02:55.1]} 14... Qd7 {[%clk 0:02:46.3]} 15. Bb2 {[%clk 0:02:53.8]} 15... e6
{[%clk 0:02:37]} 16. Rfd1 {[%clk 0:02:48]} 16... exd5 {[%clk 0:02:35.3]} 17.
Qxd5 {[%clk 0:02:46.3]} 17... Qe6 {[%clk 0:02:28.9]} 18. Rab1 {[%clk 0:02:20.6]}
18... Nxc4 {[%clk 0:02:15]} 19. Qxe6 {[%clk 0:01:41.2]} 19... fxe6 {[%clk
0:02:15.9]} 20. Nxc4 {[%clk 0:01:41.7]} 20... Bxc4 {[%clk 0:02:16.7]} 21. Rxd6
{[%clk 0:01:42.3]} 21... Rfd8 {[%clk 0:02:04.6]} 22. Rbd1 {[%clk 0:01:20.7]}
22... Rxd6 {[%clk 0:02:03.7]} 23. Rxd6 {[%clk 0:01:21.6]} 23... Bf8 {[%clk
0:01:57.3]} 24. Rd7 {[%clk 0:01:19.1]} 24... Bb3 {[%clk 0:01:55.3]} 25. Bh3
{[%clk 0:01:18.2]} 25... a6 {[%clk 0:01:16.2]} 26. Rb7 {[%clk 0:01:15.8]} 26...
b5 {[%clk 0:01:04.4]} 27. axb5 {[%clk 0:01:13.9]} 27... axb5 {[%clk 0:01:04.9]}
28. Rxb5 {[%clk 0:01:14.4]} 28... Bc4 {[%clk 0:01:05.3]} 29. Rb7 {[%clk
0:00:59.2]} 29... Rd8 {[%clk 0:01:00.5]} 30. Bg4 {[%clk 0:00:48.4]} 30... h5
{[%clk 0:00:56.6]} 31. Bf3 {[%clk 0:00:41.7]} 31... Rd2 {[%clk 0:00:45.2]} 32.
Kg2 {[%clk 0:00:33.4]} 32... Bh6 {[%clk 0:00:38.6]} 33. Rb8+ {[%clk 0:00:21.2]}
33... Bf8 {[%clk 0:00:24.8]} 34. Ba3 {[%clk 0:00:19.6]} 34... Kf7 {[%clk
0:00:24.3]} 35. Rb7+ {[%clk 0:00:19.2]} 35... Kf6 {[%clk 0:00:23.9]} 36. Rc7
{[%clk 0:00:13.5]} 36... Bd6 {[%clk 0:00:16.5]} 37. Rc6 {[%clk 0:00:12.8]} 37...
Bb5 {[%clk 0:00:15.5]} 38. Rb6 {[%clk 0:00:10]} 38... Bc4 {[%clk 0:00:09.1]} 39.
Bc1 {[%clk 0:00:10.1]} 39... Rc2 {[%clk 0:00:08]} 40. Be3 {[%clk 0:00:07.5]}
40... Be7 {[%clk 0:00:07.2]} 41. Rc6 {[%clk 0:00:04.7]} 41... Rxc3 {[%clk
0:00:07.6]} 42. Rc7 {[%clk 0:00:02.3]} 42... Bd6 {[%clk 0:00:07.6]} 43. Rc6
{[%clk 0:00:02.3]} 43... Ke7 {[%clk 0:00:07.2]} 44. Rb6 {[%clk 0:00:02.1]} 44...
Rc2 {[%clk 0:00:06.7]} 45. Rb7+ {[%clk 0:00:02.6]} 45... Kf6 {[%clk 0:00:06.6]}
46. h4 {[%clk 0:00:03.2]} 46... Be5 {[%clk 0:00:06.3]} 47. Bg5# {[%clk
0:00:03.3]} 1-0